bitfinex-derivatives/quotes_SOLF0:USTF0_20250731
["timestamp","ask_amount","ask_price","bid_price","bid_amount"]
[1753968236816,6.5188367,177.57,177.47,6.5188367]
[1753968237019,6.5188367,177.57,177.48,5.6352]
[1753968237621,6.5188367,177.57,177.49,5.6348]
[1753968238223,6.5188367,177.57,177.48,5.6351]
[1753968238420,6.5188367,177.57,177.47,6.5188367]
[1753968238622,6.5188367,177.55,177.44,6.5188367]
[1753968238918,5.6348,177.5,177.46,5.6356]
[1753968239316,6.5188367,177.55,177.46,5.6356]
[1753968239729,6.5188367,177.55,177.45,5.6361]
[1753968240026,6.5188367,177.55,177.45,6.5188367]
[1753968240227,5.6355,177.47,177.43,390.8555367]
[1753968240420,5.6355,177.47,177.43,12.1555367]
[1753968240619,6.5188367,177.53,177.43,6.5188367]
[1753968240817,5.6346,177.5,177.46,5.6356]
[1753968241421,5.6346,177.5,177.45,6.5188367]
[1753968241623,6.5188367,177.57,177.47,6.5188367]
[1753968241821,4.24964144,177.56,177.47,6.5188367]
[1753968242130,5.6338,177.53,177.49,5.6348]
[1753968242326,107.82,177.63,177.51,6.5188367]
[1753968242327,6.5188367,177.61,177.51,6.5188367]
[1753968242630,5.6322,177.58,177.54,12.1520367]
[1753968243327,114.3388367,177.63,177.52,6.5188367]
[1753968243524,4.25039756,177.62,177.52,6.5188367]
[1753968243720,5.6334,177.54,177.5,12.1531367]
[1753968243925,6.5188367,177.61,177.5,6.5188367]
[1753968244127,4.25032068,177.6,177.5,6.5188367]
[1753968244428,6.5188367,177.55,177.45,6.5188367]
[1753968244630,6.5188367,177.57,177.47,6.5188367]
[1753968244824,6.5188367,177.53,177.43,6.5188367]
[1753968245031,6.5188367,177.51,177.41,385.2188367]
[1753968245333,5.6359,177.46,177.42,5.6368]
[1753968245525,6.5188367,177.51,177.41,6.5188367]
[1753968245727,6.5188367,177.53,177.43,6.5188367]
[1753968245930,6.5188367,177.51,177.41,6.5188367]
[1753968246527,6.5188367,177.51,177.44,5.6363]
[1753968246730,6.5188367,177.51,177.41,6.5188367]
[1753968247025,5.6358,177.46,177.41,6.5188367]
[1753968247628,6.5188367,177.51,177.41,6.5188367]
[1753968248127,5.636,177.46,177.42,5.6368]
[1753968248520,6.5188367,177.51,177.42,5.6368]
[1753968248831,5.6363,177.45,177.42,5.6368]
[1753968249230,6.5188367,177.49,177.39,114.3588367]
[1753968250034,5.6367,177.44,177.39,114.3588367]
[1753968250435,6.5188367,177.47,177.39,107.84]
[1753968251125,6.5188367,177.47,177.37,6.5188367]
[1753968251529,5.6379,177.4,177.37,5.6387]
[1753968251727,11.2686,177.51,177.21,6.5188367]
[1753968251728,6.5188367,177.38,177.21,6.5188367]
[1753968251933,6.5188367,177.38,177.27,6.5188367]
[1753968252133,6.5188367,177.36,177.27,6.5188367]
[1753968252324,6.5188367,177.36,177.25,6.5188367]
[1753968252523,6.5188367,177.34,177.25,6.5188367]
[1753968253031,6.5188367,177.34,177.17,0.98169201]
[1753968253331,6.5188367,177.34,177.23,6.5188367]
[1753968254128,6.5188367,177.32,177.11,11.2934]
[1753968254322,6.5188367,177.32,177.2,6.5188367]
[1753968254531,5.6412,177.3,177.25,5.6423]
[1753968254735,5.6412,177.3,177.2,6.5188367]
[1753968255438,6.5188367,177.32,177.22,6.5188367]
[1753968255827,5.6411,177.3,177.25,5.6425]
[1753968256031,5.6411,177.3,177.22,6.5188367]
[1753968256433,6.5188367,177.32,177.22,6.5188367]
[1753968256830,378.8,177.4,177.28,6.5188367]
[1753968257035,6.5188367,177.35,177.25,6.5188367]
[1753968257341,6.5188367,177.31,177.24,5.6425]
[1753968257532,6.5188367,177.31,177.21,6.5188367]
[1753968258132,6.5188367,177.31,177.2,6.5188367]
[1753968258338,6.5188367,177.29,177.2,6.5188367]
[1753968258537,5.6418,177.28,177.24,5.6426]
[1753968258840,5.6418,177.28,177.2,6.5188367]
[1753968259441,6.5188367,177.31,177.22,6.5188367]
[1753968259640,6.5188367,177.35,177.28,5.6413]
[1753968260447,6.5188367,177.35,177.27,5.6418]
[1753968260640,378.8,177.4,177.26,6.5188367]
[1753968260945,4.23330557,177.39,177.32,5.6402]
[1753968261146,4.23330557,177.38,177.32,5.6402]
[1753968261351,385.3188367,177.4,177.3,6.5188367]
[1753968261552,4.23359177,177.39,177.31,5.6404]
[1753968261755,4.23359177,177.38,177.3,6.5188367]
[1753968261946,6.5188367,177.44,177.34,6.5188367]
[1753968262145,379.04,177.5,177.26,107.9]
[1753968262146,6.5188367,177.46,177.36,6.5188367]
[1753968262347,4.23619371,177.45,177.36,6.5188367]
[1753968262542,6.5188367,177.46,177.36,6.5188367]
[1753968262747,4.23618335,177.45,177.36,6.5188367]
[1753968262942,6.5188367,177.46,177.39,5.6381]
[1753968263144,4.2371482,177.45,177.36,6.5188367]
[1753968263344,6.5188367,177.46,177.36,6.5188367]
[1753968263545,6.5188367,177.48,177.38,12.1571367]
[1753968263852,6.5188367,177.42,177.32,6.5188367]
[1753968264045,5.6384,177.38,177.32,6.5188367]
[1753968264352,6.5188367,177.42,177.32,6.5188367]
[1753968264742,6.5188367,177.46,177.36,6.5188367]
[1753968264943,4.23801932,177.45,177.36,6.5188367]
[1753968265145,5.6377,177.4,177.36,6.5188367]
[1753968265645,5.6377,177.4,177.36,5.6389]
[1753968265848,6.5188367,177.4,177.28,6.5188367]
[1753968266152,4.56357588,177.47,177.28,6.5188367]
[1753968266153,6.5188367,177.38,177.32,5.6401]
[1753968266448,6.5188367,177.38,177.28,6.5188367]
[1753968266754,5.6397,177.34,177.26,6.5188367]
[1753968267246,5.6402,177.33,177.29,5.641]
[1753968267440,6.5188367,177.38,177.29,5.641]
[1753968267844,6.5188367,177.43,177.26,6.5188367]
[1753968267845,6.5188367,177.36,177.26,6.5188367]
[1753968268451,5.6405,177.32,177.26,6.5188367]
[1753968268655,5.6405,177.32,177.18,107.88]
[1753968268950,5.6401,177.33,177.18,107.88]
[1753968269146,5.6401,177.33,177.26,6.5188367]
[1753968270047,5.6401,177.33,177.29,5.6411]
[1753968270446,6.5188367,177.39,177.28,6.5188367]
[1753968270649,6.5188367,177.39,177.3,6.5188367]
[1753968271050,6.5188367,177.39,177.2,161.56]
[1753968271353,6.5188367,177.33,177.23,6.5188367]
[1753968271555,5.6407,177.31,177.23,6.5188367]
[1753968271955,6.5188367,177.33,177.23,6.5188367]
[1753968272258,5.6411,177.3,177.25,5.6423]
[1753968272457,6.5188367,177.33,177.22,6.5188367]
[1753968272757,5.6412,177.3,177.25,5.6423]
[1753968273057,6.5188367,177.33,177.25,5.6423]
[1753968273251,6.5188367,177.33,177.22,6.5188367]
[1753968273659,6.5188367,177.31,177.2,196.7588367]
[1753968273851,6.5188367,177.31,177.2,190.24]
[1753968274050,6.5188367,177.31,177.2,196.7588367]
[1753968274356,5.6419,177.27,177.23,5.643]
[1753968274852,5.6419,177.27,177.23,5.6429]
[1753968275254,6.5188367,177.33,177.24,6.5188367]
[1753968275550,6.5188367,177.33,177.27,5.6417]
[1753968275954,6.5188367,177.31,177.2,6.5188367]
[1753968276153,6.5188367,177.31,177.19,550.3]
[1753968276352,6.5188367,177.31,177.21,6.5188367]
[1753968276559,6.5188367,177.31,177.24,5.6426]
[1753968276854,5.6418,177.28,177.21,6.5188367]
[1753968277054,6.5188367,177.33,177.23,6.5188367]
[1753968277252,5.6409,177.3,177.23,6.5188367]
[1753968277455,6.5188367,177.33,177.23,6.5188367]
[1753968277651,6.5188367,177.35,177.25,6.5188367]
[1753968277853,5.6406,177.31,177.25,6.5188367]
[1753968278051,6.5188367,177.35,177.25,6.5188367]
[1753968278461,6.5188367,177.36,177.25,6.5188367]
[1753968278759,5.6409,177.31,177.27,5.6418]
[1753968279059,6.5188367,177.34,177.25,6.5188367]
[1753968279260,5.6408,177.31,177.28,5.6413]
[1753968279558,6.5188367,177.35,177.25,6.5188367]
[1753968279757,5.6405,177.32,177.28,5.6413]
[1753968279960,6.5188367,177.35,177.25,6.5188367]
[1753968280253,5.6396,177.35,177.27,6.5188367]
[1753968280457,5.6396,177.35,177.29,6.5188367]
[1753968280851,6.5188367,177.38,177.28,6.5188367]
[1753968281060,6.5188367,177.36,177.27,119.48]
[1753968281362,5.641,177.3,177.27,125.1218]
[1753968281858,15.8463012,177.42,177.27,119.48]
[1753968282061,6.5188367,177.36,177.27,119.48]
[1753968282254,5.6406,177.31,177.27,119.48]
[1753968282452,6.5188367,177.36,177.27,119.48]
[1753968282852,5.6401,177.33,177.3,5.6407]
[1753968283057,6.5188367,177.4,177.29,6.5188367]
[1753968283258,4.23889186,177.39,177.29,6.5188367]
[1753968283451,4.23889186,177.38,177.29,6.5188367]
[1753968283654,6.5188367,177.4,177.29,6.5188367]
[1753968283858,4.23935481,177.39,177.29,6.5188367]
[1753968284060,4.23935481,177.38,177.27,119.48]
[1753968284260,4.23935481,177.37,177.27,119.48]
[1753968284460,5.6399,177.34,177.3,5.6406]
[1753968284660,6.5188367,177.38,177.3,5.6406]
[1753968284861,4.24077737,177.37,177.28,6.5188367]
[1753968285065,6.5188367,177.38,177.28,6.5188367]
[1753968285262,4.24128664,177.37,177.28,6.5188367]
[1753968285565,5.6403,177.32,177.28,5.6413]
[1753968285763,6.5188367,177.36,177.27,119.48]
[1753968286065,17.7930367,177.43,177.27,119.48]
[1753968286066,5.6412,177.29,177.27,119.48]
[1753968286264,5.6412,177.29,177.26,5.6421]
[1753968286462,6.5188367,177.34,177.24,6.5188367]
[1753968286764,6.5188367,177.32,177.23,107.88]
[1753968286960,5.6418,177.28,177.24,5.6426]
[1753968287161,5.6418,177.28,177.23,107.88]
[1753968287358,5.6418,177.28,177.22,6.5188367]
[1753968287560,5.6418,177.28,177.23,107.88]
[1753968287758,6.5188367,177.36,177.27,6.5188367]
[1753968287958,4.2446485,177.35,177.28,5.6413]
[1753968288162,6.5188367,177.32,177.21,6.5188367]
[1753968288463,6.5188367,177.3,177.24,5.6426]
[1753968288861,6.5188367,177.35,177.24,6.5188367]
[1753968289067,4.24918981,177.34,177.27,5.6418]
[1753968289269,4.24918981,177.33,177.27,5.6418]
[1753968289465,4.24918981,177.32,177.24,6.5188367]
[1753968289666,6.5188367,177.35,177.26,5.6421]
[1753968289971,4.2539485,177.34,177.24,6.5188367]
[1753968290169,10.7727852,177.33,177.22,114.3988367]
[1753968290368,4.2539485,177.32,177.22,6.5188367]
[1753968290570,4.2539485,177.32,177.25,5.6425]
[1753968290871,5.6415,177.29,177.25,5.6425]
[1753968291665,6.5188367,177.35,177.24,6.5188367]
[1753968291866,4.25877798,177.34,177.24,6.5188367]
[1753968292061,5.6413,177.29,177.26,5.6421]
[1753968292265,6.5188367,177.33,177.21,107.88]
[1753968292468,6.5188367,177.31,177.21,114.3988367]
[1753968292770,5.6416,177.28,177.24,5.6426]
[1753968293473,5.6416,177.28,177.25,5.6425]
[1753968293669,5.6419,177.27,177.21,6.5188367]
[1753968293867,6.5188367,177.31,177.24,5.6428]
[1753968294071,4.26234736,177.3,177.24,5.6428]
[1753968294274,4.26234736,177.29,177.24,5.6428]
[1753968294573,6.5188367,177.31,177.24,5.6428]
[1753968294772,4.26577027,177.3,177.24,5.6428]
[1753968294967,5.642,177.27,177.24,5.6428]
[1753968295271,6.5188367,177.31,177.25,5.6424]
[1753968295471,4.26971709,177.3,177.25,5.6424]
[1753968295671,4.26971709,177.29,177.25,5.6424]
[1753968295873,9.91141709,177.28,177.25,5.6424]
[1753968296068,5.6417,177.28,177.25,5.6424]
[1753968297470,5.6418,177.27,177.24,5.6427]
[1753968298066,6.5188367,177.31,177.23,5.643]
[1753968298271,4.2733334,177.3,177.23,5.643]
[1753968298470,4.2733334,177.29,177.21,6.5188367]
[1753968298671,5.642,177.27,177.21,6.5188367]
[1753968299277,5.6417,177.28,177.23,6.5188367]
[1753968299776,6.5188367,177.33,177.24,5.6426]
[1753968299973,4.2731414,177.32,177.23,6.5188367]
[1753968300176,10.7919781,177.31,177.21,6.5188367]
[1753968300369,6.5188367,177.29,177.21,5.6437]
[1753968300571,6.5188367,177.27,177.17,6.5188367]
[1753968300972,5.644,177.21,177.18,5.6446]
[1753968301274,6.5188367,177.27,177.17,6.5188367]
[1753968301473,5.6433,177.23,177.19,5.6441]
[1753968302268,6.5188367,177.27,177.17,6.5188367]
[1753968302476,4.5720012,177.33,177.14,107.86]
[1753968302674,6.5188367,177.32,177.21,6.5188367]
[1753968302874,5.6423,177.26,177.21,6.5188367]
[1753968303077,6.5188367,177.32,177.23,6.5188367]
[1753968303268,4.26901483,177.31,177.23,6.5188367]
[1753968303472,4.26901483,177.3,177.23,6.5188367]
[1753968303668,6.5188367,177.32,177.23,6.5188367]
[1753968303980,4.268883,177.31,177.23,5.6428]
[1753968304180,10.7877197,177.3,177.19,6.5188367]
[1753968304380,4.268883,177.29,177.21,5.6435]
[1753968304680,6.5188367,177.3,177.19,6.5188367]
[1753968304882,5.6427,177.25,177.21,5.6436]
[1753968305081,6.5188367,177.3,177.21,6.5188367]
[1753968305578,6.5188367,177.33,177.23,6.5188367]
[1753968305782,4.26880421,177.32,177.23,6.5188367]
[1753968306081,6.5188367,177.33,177.25,5.6422]
[1753968306780,4.26752815,177.32,177.25,5.6422]
[1753968306971,6.5188367,177.31,177.15,11.2912]
[1753968307173,6.5188367,177.29,177.19,6.5188367]
[1753968307382,6.5188367,177.27,177.17,6.5188367]
[1753968307979,5.6437,177.22,177.18,5.6445]
[1753968308181,6.5188367,177.25,177.18,5.6445]
[1753968308380,5.6426,177.25,177.17,6.5188367]
[1753968308580,6.5188367,177.27,177.17,6.5188367]
[1753968308978,5.6433,177.23,177.17,6.5188367]
[1753968309679,5.6433,177.23,177.2,5.6438]
[1753968309880,5.6429,177.24,177.2,5.6438]
[1753968310884,6.5188367,177.31,177.21,6.5188367]
[1753968311182,4.2729505,177.3,177.21,6.5188367]
[1753968311379,4.5720012,177.33,177.19,6.5188367]
[1753968311380,10.7917872,177.29,177.19,6.5188367]
[1753968311579,4.27412321,177.28,177.19,6.5188367]
[1753968311779,6.5188367,177.29,177.19,6.5188367]
[1753968311979,4.27411615,177.28,177.2,5.6438]
[1753968312179,6.5188367,177.29,177.15,107.84]
[1753968312180,6.5188367,177.27,177.15,6.5188367]
[1753968312782,5.6436,177.22,177.15,6.5188367]
[1753968313189,5.6436,177.22,177.18,5.6444]
[1753968313487,6.5188367,177.26,177.17,6.5188367]
[1753968313677,6.5188367,177.26,177.19,5.6442]
[1753968314586,6.5188367,177.26,177.17,6.5188367]
[1753968314889,6.5188367,177.26,177.1,6.5188367]
[1753968314890,6.5188367,177.26,177.15,6.5188367]
[1753968315092,6.5188367,177.26,177.17,5.6449]
[1753968315387,6.5188367,177.26,177.15,6.5188367]
[1753968316084,5.6442,177.2,177.17,5.6449]
[1753968316290,6.5188367,177.26,177.15,6.5188367]
[1753968316489,6.5188367,177.26,177.17,6.5188367]
[1753968317186,5.6438,177.21,177.18,5.6446]
[1753968317780,5.6436,177.22,177.19,5.6443]
[1753968318091,6.5188367,177.29,177.19,6.5188367]
[1753968318284,4.26908079,177.28,177.19,6.5188367]
[1753968318480,5.643,177.24,177.2,5.6439]
[1753968318690,6.5188367,177.29,177.2,5.6439]
[1753968318891,4.26897129,177.28,177.2,5.6439]
[1753968319191,6.5188367,177.29,177.2,5.6439]
[1753968319384,4.26862843,177.28,177.19,12.1631367]
[1753968319581,6.5188367,177.27,177.17,6.5188367]
[1753968320188,5.6439,177.21,177.17,6.5188367]
[1753968320392,6.5188367,177.27,177.19,5.6444]
[1753968320687,6.5188367,177.25,177.15,6.5188367]
[1753968321094,6.5188367,177.25,177.18,5.6445]
[1753968322186,5.6439,177.21,177.18,5.6445]
[1753968322386,5.6439,177.21,177.19,5.6442]
[1753968322588,5.6433,177.23,177.17,6.5188367]
[1753968322888,5.6433,177.23,177.13,107.82]
[1753968322889,6.5188367,177.29,177.22,5.6434]
[1753968323092,5.6431,177.24,177.19,6.5188367]
[1753968323288,6.5188367,177.3,177.18,6.5188367]
[1753968323488,6.5188367,177.28,177.18,6.5188367]
[1753968323889,5.6429,177.24,177.18,6.5188367]
[1753968324287,6.5188367,177.31,177.2,6.5188367]
[1753968324593,11.2797,177.34,177.25,5.6423]
[1753968324792,4.26928971,177.33,177.25,5.6423]
[1753968324990,4.26928971,177.32,177.24,6.5188367]
[1753968325195,11.2797,177.34,177.24,6.5188367]
[1753968325488,5.6416,177.28,177.24,6.5188367]
[1753968325695,5.6416,177.28,177.25,5.6423]
[1753968325889,5.6427,177.25,177.2,6.5188367]
[1753968326798,5.6427,177.25,177.22,5.6431]
[1753968326996,5.6428,177.24,177.2,6.5188367]
[1753968327295,6.5188367,177.29,177.2,6.5188367]
[1753968327494,6.5188367,177.29,177.2,5.6439]
[1753968327695,6.5188367,177.27,177.17,6.5188367]
[1753968328499,4.272233,177.26,177.17,6.5188367]
[1753968328692,5.644,177.21,177.18,5.6447]
[1753968329093,5.644,177.21,177.17,12.1637367]
[1753968329288,5.6436,177.22,177.17,6.5188367]
[1753968330003,6.5188367,177.27,177.17,6.5188367]
[1753968330192,4.27577542,177.26,177.17,6.5188367]
[1753968330393,5.6433,177.23,177.17,6.5188367]
[1753968330596,6.5188367,177.27,177.17,6.5188367]
[1753968330794,4.27562509,177.26,177.19,5.6444]
[1753968330996,6.5188367,177.27,177.19,5.6444]
[1753968331293,15.8544012,177.3,177.19,5.6444]
[1753968331294,6.5188367,177.3,177.19,6.5188367]
[1753968331498,5.6427,177.25,177.22,5.6433]
[1753968331699,6.5188367,177.3,177.21,6.5188367]
[1753968331894,4.27684372,177.29,177.21,6.5188367]
[1753968332200,6.5188367,177.3,177.21,6.5188367]
[1753968332399,4.27716737,177.29,177.21,6.5188367]
[1753968332602,4.27716737,177.28,177.21,6.5188367]
[1753968332801,6.5188367,177.3,177.21,6.5188367]
[1753968333098,4.2773512,177.29,177.21,6.5188367]
[1753968333301,4.2773512,177.28,177.21,6.5188367]
[1753968333494,6.5188367,177.3,177.22,5.6432]
[1753968333697,4.27839489,177.29,177.22,5.6432]
[1753968333893,4.27839489,177.28,177.22,5.6432]
[1753968334100,17.38725367,177.35,177.11,486.98]
[1753968334101,11.0908379,177.33,177.23,6.5188367]
[1753968334304,4.27929702,177.32,177.23,6.5188367]
[1753968334496,4.27929702,177.31,177.23,6.5188367]
[1753968334698,4.27929702,177.3,177.23,6.5188367]
[1753968334899,4.5720012,177.36,177.25,6.5188367]
[1753968335098,6.5188367,177.33,177.24,5.6427]
[1753968335299,4.29445686,177.32,177.22,6.5188367]
[1753968335700,5.6415,177.29,177.25,5.6425]
[1753968335904,5.6415,177.29,177.24,6.5188367]
[1753968336101,5.641,177.3,177.27,5.6418]
[1753968336697,6.5188367,177.34,177.28,5.6414]
[1753968336897,4.29495238,177.33,177.24,6.5188367]
[1753968337100,5.6406,177.31,177.28,5.6413]
[1753968337301,6.5188367,177.35,177.26,6.5188367]
[1753968337505,4.2950351,177.34,177.26,6.5188367]
[1753968337704,4.2950351,177.33,177.26,6.5188367]
[1753968337905,4.2950351,177.32,177.24,6.5188367]
[1753968338200,486.98,177.37,177.26,6.5188367]
[1753968338201,383.7720012,177.37,177.26,6.5188367]
[1753968338392,4.29524869,177.36,177.21,6.5188367]
[1753968338592,385.7188367,177.37,177.28,6.5188367]
[1753968338593,4.29524869,177.35,177.28,6.5188367]
[1753968338799,5.6399,177.33,177.28,6.5188367]
[1753968339005,11.0908379,177.39,177.28,6.5188367]
[1753968339202,5.6397,177.34,177.31,5.6404]
[1753968339402,4.5720012,177.4,177.3,6.5188367]
[1753968339599,8.86654704,177.4,177.3,6.5188367]
[1753968340202,4.29454584,177.4,177.3,6.5188367]
[1753968340401,4.29454584,177.39,177.3,6.5188367]
[1753968340599,5.6392,177.36,177.32,5.6399]
[1753968340799,11.0908379,177.41,177.32,5.6399]
[1753968340999,6.5188367,177.39,177.3,6.5188367]
[1753968341194,4.29346983,177.38,177.3,6.5188367]
[1753968341400,4.29346983,177.37,177.3,6.5188367]
[1753968341600,6.5188367,177.39,177.3,6.5188367]
[1753968341908,4.29231254,177.38,177.31,5.6405]
[1753968342104,4.29231254,177.37,177.31,5.6405]
[1753968342306,6.5188367,177.39,177.31,5.6405]
[1753968342609,4.29082158,177.38,177.31,5.6405]
[1753968342809,4.29082158,177.37,177.31,5.6405]
[1753968343108,6.5188367,177.39,177.3,12.1597367]
[1753968343406,4.29112135,177.38,177.3,12.1597367]
[1753968343598,6.5188367,177.33,177.24,6.5188367]
[1753968343797,6.5188367,177.31,177.22,6.5188367]
[1753968344001,5.641,177.3,177.22,6.5188367]
[1753968344704,5.641,177.3,177.26,5.642]
[1753968344905,5.6412,177.29,177.22,6.5188367]
[1753968345499,6.5188367,177.31,177.22,6.5188367]
[1753968345700,6.5188367,177.31,177.2,6.5188367]
[1753968346300,6.5188367,177.31,177.23,5.6429]
[1753968347310,6.5188367,177.32,177.22,6.5188367]
[1753968348110,6.5188367,177.3,177.2,6.5188367]
[1753968348410,5.6424,177.26,177.22,5.6432]
[1753968348705,6.5188367,177.3,177.22,5.6432]
[1753968348913,5.6419,177.27,177.23,5.6431]
[1753968349614,5.6416,177.28,177.24,5.6428]
[1753968349809,6.5188367,177.3,177.24,5.6428]
[1753968350005,6.5188367,177.3,177.22,6.5188367]
[1753968350313,5.6408,177.31,177.24,6.5188367]
[1753968350812,6.5188367,177.31,177.22,6.5188367]
[1753968351712,5.6411,177.3,177.22,6.5188367]
[1753968351908,6.5188367,177.31,177.22,6.5188367]
[1753968352415,5.6414,177.29,177.22,6.5188367]
[1753968352610,6.5188367,177.29,177.2,6.5188367]
[1753968353114,5.6421,177.27,177.23,5.6429]
[1753968353311,6.5188367,177.29,177.2,6.5188367]
[1753968353814,5.6419,177.27,177.23,5.6429]
[1753968354011,6.5188367,177.29,177.2,6.5188367]
[1753968354409,5.6423,177.26,177.22,5.6432]
[1753968354721,6.5188367,177.29,177.18,6.5188367]
[1753968355707,5.6425,177.25,177.18,6.5188367]
[1753968356113,6.5188367,177.29,177.18,6.5188367]
[1753968356313,5.6424,177.26,177.22,5.6434]
[1753968356514,6.5188367,177.29,177.2,6.5188367]
[1753968357117,5.642,177.27,177.2,6.5188367]
[1753968358417,6.5188367,177.29,177.2,6.5188367]
[1753968358617,6.5188367,177.31,177.22,6.5188367]
[1753968358826,4.29542646,177.3,177.22,6.5188367]
[1753968359121,6.5188367,177.31,177.22,6.5188367]
[1753968359315,4.29542646,177.3,177.22,6.5188367]
[1753968359518,6.5188367,177.33,177.22,6.5188367]
[1753968359717,4.2961005,177.32,177.22,6.5188367]
[1753968359925,5.6412,177.3,177.26,5.6421]
[1753968360321,6.5188367,177.33,177.22,6.5188367]
[1753968360518,11.0908379,177.37,177.28,6.5188367]
[1753968360722,4.29707989,177.36,177.3,4.00830266]
[1753968360929,5.6392,177.36,177.31,4.00830266]
[1753968361231,4.00830266,177.38,177.31,4.00830266]
[1753968361423,5.6395,177.35,177.31,9.64870266]
[1753968361723,4.00830266,177.36,177.29,4.00830266]
[1753968361923,5.6398,177.34,177.3,5.6407]
[1753968362223,5.6398,177.34,177.29,4.00830266]
[1753968362431,5.6398,177.34,177.3,5.6408]
[1753968362827,5.6398,177.34,177.28,6.53307724]
[1753968363026,5.6392,177.36,177.3,6.53307724]
[1753968363429,6.53307724,177.39,177.3,6.53307724]
[1753968363627,4.30058297,177.38,177.31,5.6404]
[1753968363827,4.30058297,177.37,177.31,5.6404]
[1753968364030,5.6395,177.35,177.31,5.6403]
[1753968364330,6.53307724,177.39,177.29,6.53307724]
[1753968364532,4.30030491,177.38,177.29,6.53307724]
[1753968364729,5.639,177.36,177.29,6.53307724]
[1753968365026,6.53307724,177.39,177.29,6.53307724]
[1753968365232,4.29758671,177.38,177.33,5.6396]
[1753968365431,4.29681344,177.37,177.29,6.53307724]
[1753968365629,6.53307724,177.35,177.25,6.53307724]
[1753968365827,6.53307724,177.35,177.3,5.6407]
[1753968366330,5.6398,177.34,177.3,5.6407]
[1753968367129,5.64,177.33,177.29,5.6411]
[1753968367331,5.64,177.33,177.27,6.53307724]
[1753968367831,5.6398,177.34,177.3,5.6406]
[1753968369131,5.64,177.33,177.3,5.6406]
[1753968369731,5.64,177.33,177.27,6.53307724]
[1753968370328,5.64,177.33,177.22,116.06047724]
[1753968370329,6.53307724,177.37,177.22,107.6]
[1753968370635,6.53307724,177.37,177.27,6.53307724]
[1753968370828,5.6396,177.34,177.3,5.6406]
[1753968371626,5.6396,177.34,177.27,6.53307724]
[1753968372034,5.6393,177.35,177.27,6.53307724]
[1753968372230,5.6393,177.35,177.29,6.53307724]
[1753968372423,5.6392,177.36,177.29,6.53307724]
[1753968372630,6.53307724,177.39,177.29,6.53307724]
[1753968372827,4.29556353,177.38,177.31,6.53307724]
[1753968373023,6.53307724,177.41,177.33,5.6397]
[1753968373226,5.6389,177.37,177.33,5.6397]
[1753968373932,6.53307724,177.39,177.29,6.53307724]
[1753968374126,4.29481876,177.38,177.29,6.53307724]
[1753968374330,120.38113091,177.43,177.29,6.53307724]
[1753968374331,4.29481876,177.37,177.32,5.6401]
[1753968374528,6.53307724,177.4,177.32,5.6401]
[1753968374722,5.639,177.36,177.32,5.6401]
[1753968375124,6.53307724,177.4,177.33,5.6398]
[1753968375330,10.82911443,177.39,177.24,11.2855]
[1753968375533,4.29603719,177.38,177.32,5.6402]
[1753968375734,4.29603719,177.38,177.29,6.53307724]
[1753968375928,6.53307724,177.37,177.27,6.53307724]
[1753968376131,4.29603719,177.36,177.27,6.53307724]
[1753968376431,4.29603719,177.36,177.3,5.6407]
[1753968376631,4.29603719,177.36,177.2,107.52]
[1753968376632,6.53307724,177.35,177.25,6.53307724]
[1753968377023,6.53307724,177.37,177.27,6.53307724]
[1753968377238,4.29752678,177.36,177.27,6.53307724]
[1753968377424,4.29752678,177.35,177.27,6.53307724]
[1753968377630,6.53307724,177.39,177.29,6.53307724]
[1753968377826,4.29905535,177.38,177.29,6.53307724]
[1753968378025,5.639,177.36,177.33,5.6399]
[1753968378228,4.5720012,177.41,177.29,6.53307724]
[1753968378429,4.29981182,177.4,177.33,6.53307724]
[1753968378636,4.29981182,177.39,177.33,6.53307724]
[1753968378835,114.27307724,177.43,177.33,6.53307724]
[1753968379035,4.29994831,177.42,177.33,6.53307724]
[1753968379337,4.29994831,177.42,177.27,11.2836]
[1753968379338,4.29994831,177.41,177.35,6.53307724]
[1753968379538,107.74,177.43,177.35,6.53307724]
[1753968379839,4.29939228,177.42,177.37,6.53307724]
[1753968380138,5.6367,177.44,177.4,5.6375]
[1753968380332,4.29829973,177.43,177.35,6.53307724]
[1753968380534,4.29829973,177.42,177.35,6.53307724]
[1753968380834,10.83094261,177.41,177.31,6.53307724]
[1753968381031,6.53307724,177.37,177.27,385.65307724]
[1753968381232,6.53307724,177.39,177.29,6.53307724]
[1753968381738,5.6391,177.36,177.29,6.53307724]
[1753968382339,6.53307724,177.39,177.33,5.6397]
[1753968382534,4.29696796,177.38,177.33,5.6397]